[Event "NY Presidents Day Schiller-C 2024"]
[Site "New York"]
[Date "2024.02.20"]
[Round "9.8"]
[White "Lapshun, Yury"]
[Black "Tang, Benjamin"]
[Result "1/2-1/2"]
[ECO "E92"]
[WhiteElo "2337"]
[BlackElo "2167"]
[Annotator "TA"]
[PlyCount "95"]
[EventDate "2024.02.14"]
[EventType "schev"]
[EventCountry "USA"]
[SourceTitle "playchess.com"]
[Source "ChessBase"]
[SourceQuality "1"]
[TimeControl "5400+30"]

{[%evp 26,95,0,-36,-45,-29,-33,-92,-89,-74,-89,-110,-111,-118,-110,-121,-114,-126,-102,-162,-127,-155,-168,-154,-132,-136,-130,-139,-139,-237,-223,-204,-179,-152,-192,-186,-166,-186,-178,-185,-183,-173,-189,-183,-178,-178,-180,-162,-150,-265,-269,-278,-279,-283,-268,-403,-295,-254,0,0,-8,-8,-8,-8,-8,-8,-8,-8,-8,-8,-8,-8]} 1. d4 {[%emt 0:19:27]} Nf6 {[%emt 0:00:05]} 2. Nf3 {[%emt 0:00:10]} g6 {[%emt 0:00:04]} 3. c4 {[%emt 0:00:54]} Bg7 {[%emt 0:00:08]} 4. Nc3 {[%emt 0:00:02]} d6 {[%emt 0:00:07]} 5. e4 {[%emt 0:00:14]} O-O {[%emt 0:00:05]} 6. Be2 {[%emt 0:00:02][%cal Bf1e2,Be2c4,Bc4d5][%mdl 32]} e5 {[%emt 0:00:04]} 7. dxe5 {[%emt 0:00:34]} dxe5 {[%emt 0:00:05]} 8. Qxd8 {[%emt 0:00:09]} Rxd8 {[%emt 0:00:02]} 9. Nd5 {[%emt 0:00:10]} Nxd5 {[%emt 0:00:46]} 10. cxd5 {[%emt 0:00:01]} c6 {[%emt 0:01:40]} 11. Bc4 {[%emt 0:00:04]} cxd5 {[%emt 0:00:38]} 12. Bxd5 {[%emt 0:00:09]} Nd7 {[%emt 0:00:52]} 13. Bg5 {[%emt 0:05:23]} Re8 {[%emt 0:01:24]} 14. Rc1 {[%emt 0:00:54]} h6 $1 {[%emt 0:01:38]} 15. Be3 {[%emt 0:01:01]} Nf6 {[%emt 0:01:12]} 16. O-O {[%emt 0:00:18]} (16. Bb3 $15) 16... Nxd5 $17 {[%emt 0:03:24] Black is better.} 17. exd5 {[%emt 0:00:02]} Rd8 {[%emt 0:03:26]} 18. Rc7 {[%emt 0:01:58]} Rxd5 {[%emt 0:08:29]} 19. Rfc1 {[%emt 0:01:13] Against b6} Rd8 {[%emt 0:06:35]} 20. Nd2 {[%emt 0:00:41]} b6 {[%emt 0:01:37]} 21. a4 {[%emt 0:04:30]} Be6 {[%emt 0:04:16]} 22. b4 {[%emt 0:05:47]} (22. h4 $17) 22... Rac8 {[%emt 0:07:44]} 23. a5 {[%emt 0:01:33]} Rxc7 {[%emt 0:06:04]} 24. Rxc7 {[%emt 0:00:20]} bxa5 {[%emt 0:00:42]} 25. bxa5 {[%emt 0:00:05]} f5 {[%emt 0:01:43] [#] Threatens to win with ...f4.} 26. g3 {[%emt 0:00:43]} g5 {[%emt 0:00:47] Strongly threatening ...f4.} 27. f4 {[%emt 0:03:54]} (27. Rc6 $17 Bf7 28. f4) 27... exf4 {[%emt 0:02:30]} 28. gxf4 {[%emt 0:00:03]} Bd4 {[%emt 0:10:22] This pair of bishops is nice.} 29. Kf2 {[%emt 0:06:07] [#]} Bxe3+ $1 {[%emt 0:00:45]} (29... gxf4 30. Bxd4 Rxd4 31. Nb1 $15) 30. Kxe3 {[%emt 0:00:03]} gxf4+ {[%emt 0:00:07][%mdl 4096] Endgame. KRB-KRN} 31. Ke2 {[%emt 0:00:22]} a6 {[%emt 0:00:22]} 32. Nf3 {[%emt 0:06:24]} Bd5 {[%emt 0:03:30] Dodges Rc6} 33. Nh4 {[%emt 0:07:16]} Be4 {[%emt 0:01:49]} 34. Rc5 {[%emt 0:09:43]} Rb8 {[%emt 0:00:43] ...Rb2+ is the strong threat.} 35. Nxf5 {[%emt 0:00:10]} Rb2+ {[%emt 0:00:06]} 36. Ke1 {[%emt 0:00:32]} Rxh2 {[%emt 0:01:43] White must now prevent ...f3.} 37. Rc8+ {[%emt 0:00:44]} (37. Re5 $17 {was called for.} Bb1 38. Ne7+ Kh8 39. Nc6) 37... Kh7 $19 {[%emt 0:00:03]} 38. Nd6 {[%emt 0:00:16]} Bd3 {[%emt 0:01:53]} 39. Rc3 {[%emt 0:03:07]} Be2 {[%emt 0:05:09]} 40. Nf5 {[%emt 0:01:13]} (40. Rc7+ {was necessary.} Kg6 41. Ne4) 40... f3 {[%emt 0:00:45]} 41. Nd4 {[%emt 0:01:09]} Rh5 $2 {[%emt 0:02:57]} ({Weaker is} 41... Rh1+ 42. Kf2 $15) ({Black should play} 41... Bd1 $19 {...f2+ would now be deadly.} 42. Nxf3 (42. Kxd1 $2 {perishes.} Rh1+ 43. Kd2 f2 $19) 42... Bxf3 43. Rxf3 Rh5) 42. Rc7+ $11 {[%emt 0:07:45] The position is equal.} Kg8 {[%emt 0:01:18]} 43. Rc8+ {[%emt 0:00:11]} Kf7 {[%emt 0:00:45]} 44. Rc7+ {[%emt 0:00:10]} Kf8 {[%emt 0:02:49]} 45. Nxe2 {[%emt 0:03:06]} fxe2 {[%emt 0:04:36]} 46. Rc6 $1 {[%emt 0:00:18]} Rxa5 {[%emt 0:00:07]} 47. Rxh6 {[%emt 0:00:08]} Ra2 {[%emt 0:00:04] Hoping for ...a5.} 48. Re6 {[%emt 0:00:16] And White is the lucky defender.   Weighted Error Value: White=0.17 (very precise) /Black=0.21 (precise) .  Missed win:     	---       	Black=1      Mistake:       	White=5     	---        OK:         	White=14    	Black=16     Best:        	White=5     	Black=5      Strong:       	White=1     	---} 1/2-1/2

[Event "NY Presidents Day Schiller-C 2024"]
[Site "New York"]
[Date "2024.02.19"]
[Round "9.9"]
[White "Campos Jimenez, Augusto Cesar"]
[Black "Meduri, Aakaash"]
[Result "1/2-1/2"]
[ECO "C41"]
[WhiteElo "2288"]
[BlackElo "1956"]
[Annotator "TA"]
[PlyCount "30"]
[EventDate "2024.02.14"]
[EventType "schev"]
[EventCountry "USA"]
[SourceTitle "playchess.com"]
[Source "ChessBase"]
[SourceQuality "1"]
[TimeControl "5400+30"]

{[%evp 15,30,45,44,38,41,-49,-41,-43,0,-14,51,0,0,0,0,0,8]} 1. e4 {[%emt 0:14:47]} d6 {[%emt 0:00:13]} 2. d4 {[%emt 0:00:33]} Nf6 {[%emt 0:00:12]} 3. Nc3 {[%emt 0:00:17]} e5 {[%emt 0:00:10]} 4. Nf3 {[%emt 0:00:44]} Nbd7 {[%emt 0:00:13]} 5. Bc4 {[%emt 0:00:29]} Be7 {[%emt 0:00:16]} 6. O-O {[%emt 0:00:20]} O-O {[%emt 0:00:12]} 7. Re1 {[%emt 0:00:05]} c6 {[%emt 0:00:32]} 8. a4 {[%emt 0:00:10]} h6 {[%emt 0:00:20]} 9. Ba2 {[%emt 0:00:29]} Re8 {[%emt 0:02:08]} 10. Nh4 {[%emt 0:03:04]} ({Vorzuziehen ist} 10. h3 $14) 10... exd4 $15 {[%emt 0:05:06]} 11. Qxd4 {[%emt 0:00:15] Schwarz steht etwas besser.} Nc5 {[%emt 0:00:56]} (11... d5 $5 12. exd5 Bc5 13. Rxe8+ Qxe8 $11) 12. Ng6 {[%emt 0:05:06]} Be6 {[%emt 0:01:56]} (12... d5 $1 $11 13. Nxe7+ Qxe7) 13. Bxe6 {[%emt 0:01:00]} ({Besser ist} 13. Nxe7+ $14 Qxe7 14. b3) 13... Nxe6 $11 {[%emt 0:00:23] Die Stellung ist ausgeglichen.} 14. Nxe7+ {[%emt 0:00:57]} Qxe7 {[%emt 0:00:46]} 15. Qe3 {[%emt 0:00:32]} a5 {[%emt 0:00:58] Gewichteter Fehlerwert: Weiß=0.28 (präzise) /Schwarz=0.23 (präzise) .  Fehler:       	Weiß=2     	Schwarz=1     Ungenau:       	---       	Schwarz=1     OK:         	Weiß=1     	Schwarz=1     Bester:       	Weiß=1     	Schwarz=1} 1/2-1/2